[Event "1.FrauenBL 2018-19"]
[Site "Berlin"]
[Date "2019.03.03"]
[Round "11.3"]
[White "Obolentseva, Alexandra"]
[Black "Wagner-Michel, Annett"]
[Result "1-0"]
[ECO "D36"]
[WhiteElo "2324"]
[BlackElo "2059"]
[Annotator "NA"]
[PlyCount "133"]
[EventDate "2018.10.27"]
[EventType "team-tourn"]
[EventCountry "GER"]
[SourceTitle "playchess.com"]
[Source "ChessBase"]
[SourceQuality "1"]
[WhiteTeam "Bad Koenigshofen"]
[BlackTeam "Pankow"]
[TimeControl "40/5400+30:1800+30"]

1. d4 {[%emt 0:00:00]} d5 {[%emt 0:00:04]} 2. c4 {[%emt 0:00:13]} e6 {[%emt 0:00:00]} 3. Nc3 {[%emt 0:00:00]} Nf6 {[%emt 0:00:14]} 4. cxd5 {[%emt 0:00:05]} exd5 {[%emt 0:00:09]} 5. Bg5 {[%emt 0:00:21]} Be7 {[%emt 0:00:00]} 6. e3 {[%emt 0:00:11]} O-O {[%emt 0:00:00]} 7. Bd3 {[%emt 0:00:07]} Nbd7 {[%emt 0:03:12]} 8. Nf3 {[%emt 0:00:58]} c6 {[%emt 0:00:42]} 9. Qc2 {[%emt 0:00:20]} h6 {[%emt 0:02:26]} 10. Bh4 {[%emt 0:04:32]} Re8 {[%emt 0:00:12]} 11. O-O {[%emt 0:00:12]} Nf8 {[%emt 0:00:00]} 12. Rae1 {[%emt 0:14:12]} Nh5 {[%emt 0:00:00]} 13. Bxe7 {[%emt 0:00:00]} Rxe7 {[%emt 0:16:32]} 14. b4 {[%emt 0:00:00]} Bd7 {[%emt 0:07:20]} 15. b5 {[%emt 0:00:00]} Nf6 {[%emt 0:00:00]} 16. Ne5 {[%emt 0:00:00]} cxb5 {[%emt 0:00:00]} 17. Nxb5 {[%emt 0:00:00]} Bxb5 {[%emt 0:07:54]} 18. Bxb5 {[%emt 0:00:00]} Rc7 {[%emt 0:06:05]} 19. Qb2 {[%emt 0:23:39]} Rac8 {[%emt 0:02:23]} 20. Bd3 {[%emt 0:00:00]} g6 {[%emt 0:02:39]} 21. Qb1 {[%emt 0:00:00]} Kg7 {[%emt 0:00:00]} 22. f4 {[%emt 0:15:32]} Qe7 {[%emt 0:14:33]} 23. g4 {[%emt 0:04:03]} Rc3 {[%emt 0:00:00]} 24. g5 {[%emt 0:00:00]} Ng8 {[%emt 0:16:29]} 25. h4 {[%emt 0:16:29]} R8c7 {[%emt 0:04:53]} 26. Qb5 {[%emt 0:00:00]} f6 {[%emt 0:01:29]} 27. Ng4 {[%emt 0:00:00]} h5 {[%emt 0:02:33]} 28. Nf2 {[%emt 0:08:55]} Qd7 {[%emt 0:00:00]} 29. Qb1 {[%emt 0:00:00]} f5 {[%emt 0:04:53]} 30. Rc1 {[%emt 0:00:00]} Ne7 {[%emt 0:01:00]} 31. Rxc3 {[%emt 0:00:00]} Rxc3 {[%emt 0:00:02]} 32. Rc1 {[%emt 0:00:00]} Rxc1+ {[%emt 0:00:30]} 33. Qxc1 {[%emt 0:00:00]} Qc6 {[%emt 0:00:00]} 34. Qa3 {[%emt 0:00:00]} Nc8 {[%emt 0:00:00]} 35. Bf1 {[%emt 0:07:46]} Nd7 {[%emt 0:05:37]} 36. Nd3 {[%emt 0:00:00]} a6 {[%emt 0:00:00]} 37. Bg2 {[%emt 0:00:00]} Qb5 {[%emt 0:03:44]} 38. Kh2 {[%emt 0:00:00]} Ndb6 {[%emt 0:00:00]} 39. Ne5 {[%emt 0:00:00]} Nc4 {[%emt 0:01:19]} 40. Qc3 {[%emt 0:00:00]} N8b6 {[%emt 0:01:03]} 41. Nxc4 {[%emt 0:00:00]} Nxc4 {[%emt 0:31:44]} 42. a4 {[%emt 0:00:00]} Qd7 {[%emt 0:00:00]} 43. Kg3 {[%emt 0:14:28]} b6 {[%emt 0:00:00]} 44. Kf2 {[%emt 0:09:49]} a5 {[%emt 0:00:00]} 45. Qb3 {[%emt 0:00:00]} Qe6 {[%emt 0:00:00]} 46. Bf3 {[%emt 0:02:55]} Kf8 {[%emt 0:00:00]} 47. Be2 {[%emt 0:02:28]} Nd2 {[%emt 0:00:00]} 48. Qa3+ {[%emt 0:00:00]} Kf7 {[%emt 0:00:00]} 49. Qc1 {[%emt 0:00:00]} Ne4+ {[%emt 0:00:00]} 50. Kf3 {[%emt 0:06:38]} Kf8 {[%emt 0:00:39]} 51. Bd3 {[%emt 0:00:00]} Ke7 {[%emt 0:00:00]} 52. Bb5 {[%emt 0:09:46]} Kd8 {[%emt 0:04:09]} 53. Qc2 {[%emt 0:00:00]} Nd6 {[%emt 0:00:53]} 54. Qc6 {[%emt 0:00:00]} Qe4+ {[%emt 0:00:05]} 55. Kf2 {[%emt 0:01:48]} Nxb5 {[%emt 0:00:17]} 56. axb5 {[%emt 0:00:00]} Ke7 {[%emt 0:01:33]} 57. Qf6+ {[%emt 0:00:00]} Kd7 {[%emt 0:00:20]} 58. Qxg6 {[%emt 0:00:00]} Qc2+ {[%emt 0:00:06]} 59. Kg3 {[%emt 0:02:16]} Qb1 {[%emt 0:00:35]} 60. Qc6+ {[%emt 0:00:00]} Ke7 {[%emt 0:00:00]} 61. Kf2 {[%emt 0:00:00]} Qa2+ {[%emt 0:01:37]} 62. Kf3 {[%emt 0:02:12]} Qc4 {[%emt 0:00:25]} 63. Qxc4 {[%emt 0:00:00]} dxc4 {[%emt 0:00:02]} 64. Ke2 {[%emt 0:00:27]} a4 {[%emt 0:00:17]} 65. Kd2 {[%emt 0:00:00]} a3 {[%emt 0:00:18]} 66. Kc2 {[%emt 0:00:00]} a2 {[%emt 0:01:08]} 67. Kb2 {[%emt 0:01:43]} 1-0

[Event "1.FrauenBL 2018-19"]
[Site "Berlin"]
[Date "2019.03.03"]
[Round "11.3"]
[White "Mader, Manuela"]
[Black "Jelica, Mara"]
[Result "1-0"]
[ECO "C60"]
[WhiteElo "2156"]
[BlackElo "2147"]
[Annotator "NA"]
[PlyCount "87"]
[EventDate "2018.10.27"]
[EventType "team-tourn"]
[EventCountry "GER"]
[SourceTitle "playchess.com"]
[Source "ChessBase"]
[SourceQuality "1"]
[WhiteTeam "Karlsruher SF"]
[BlackTeam "SF Deizisau"]
[TimeControl "40/5400+30:1800+30"]

1. e4 {[%emt 0:00:03]} e5 {[%emt 0:00:00]} 2. Nf3 {[%emt 0:00:05]} Nc6 {[%emt 0:00:07]} 3. Bb5 {[%emt 0:00:05]} Nge7 {[%emt 0:00:06]} 4. O-O {[%emt 0:01:29]} g6 {[%emt 0:00:07]} 5. c3 {[%emt 0:05:03]} Bg7 {[%emt 0:00:09]} 6. d4 {[%emt 0:04:34]} exd4 {[%emt 0:00:24]} 7. cxd4 {[%emt 0:00:54]} d5 {[%emt 0:02:36]} 8. e5 {[%emt 0:01:16]} O-O {[%emt 0:00:05]} 9. h3 {[%emt 0:08:04]} h6 {[%emt 0:05:36]} 10. Nc3 {[%emt 0:10:49]} a6 {[%emt 0:07:28]} 11. Ba4 {[%emt 0:06:30]} Bf5 {[%emt 0:04:22]} 12. Nh4 {[%emt 0:11:19]} Be6 {[%emt 0:08:26]} 13. f4 {[%emt 0:00:00]} f6 {[%emt 0:09:08]} 14. Nf3 {[%emt 0:07:37]} Nf5 {[%emt 0:05:37]} 15. Re1 {[%emt 0:12:07]} b5 {[%emt 0:04:24]} 16. Bc2 {[%emt 0:00:00]} fxe5 {[%emt 0:00:40]} 17. dxe5 {[%emt 0:11:38]} Kh7 {[%emt 0:10:52]} 18. a3 {[%emt 0:02:11]} b4 {[%emt 0:23:07]} 19. Na4 {[%emt 0:03:09]} Qe7 {[%emt 0:00:00]} 20. Qd3 {[%emt 0:00:54]} Kg8 {[%emt 0:00:00]} 21. Bd2 {[%emt 0:01:07]} Rfd8 {[%emt 0:00:00]} 22. Rec1 {[%emt 0:00:00]} a5 {[%emt 0:00:00]} 23. g4 {[%emt 0:00:00]} Ng3 {[%emt 0:02:19]} 24. Bd1 {[%emt 0:00:00]} Qe8 {[%emt 0:02:11]} 25. Nc5 {[%emt 0:08:06]} Bf7 {[%emt 0:02:19]} 26. Ba4 {[%emt 0:01:02]} Ne4 {[%emt 0:04:49]} 27. Bxc6 {[%emt 0:00:00]} Qxc6 {[%emt 0:00:04]} 28. Nxe4 dxe4 29. Qxd8+ {[%emt 0:02:45]} Rxd8 {[%emt 0:00:11]} 30. Rxc6 {[%emt 0:00:04]} exf3 {[%emt 0:00:04]} 31. Be3 {[%emt 0:00:12]} Rd3 {[%emt 0:00:41]} 32. Re1 {[%emt 0:02:14]} bxa3 33. bxa3 Rxa3 {[%emt 0:06:56]} 34. Rxc7 {[%emt 0:01:19]} Ra2 {[%emt 0:00:00]} 35. Bf2 {[%emt 0:00:27]} Be6 {[%emt 0:01:45]} 36. Rb1 {[%emt 0:01:06]} Bf8 {[%emt 0:00:00]} 37. Rb8 {[%emt 0:01:14]} h5 {[%emt 0:00:22]} 38. Ra7 {[%emt 0:01:08]} hxg4 {[%emt 0:00:52]} 39. hxg4 {[%emt 0:00:00]} Bd5 {[%emt 0:02:25]} 40. Rd7 {[%emt 0:00:00]} Be6 {[%emt 0:01:04]} 41. Rdd8 {[%emt 0:31:01]} Bxg4 {[%emt 0:30:02]} 42. Rxf8+ {[%emt 0:00:12]} Kg7 {[%emt 0:00:03]} 43. e6 {[%emt 0:00:32]} g5 {[%emt 0:00:25]} 44. Rf7+ {[%emt 0:01:15]} 1-0

[Event "1.FrauenBL 2018-19"]
[Site "Berlin"]
[Date "2019.03.03"]
[Round "11.3"]
[White "Gosciniak, Maria"]
[Black "Lubbe, Melanie"]
[Result "0-1"]
[ECO "A24"]
[WhiteElo "2116"]
[BlackElo "2288"]
[Annotator "NA"]
[PlyCount "200"]
[EventDate "2018.10.27"]
[EventType "team-tourn"]
[EventCountry "GER"]
[SourceTitle "playchess.com"]
[Source "ChessBase"]
[SourceQuality "1"]
[WhiteTeam "TuRa Harksheide"]
[BlackTeam "Rodewischer SM"]
[TimeControl "40/5400+30:1800+30"]

1. c4 {[%emt 0:00:05]} Nf6 {[%emt 0:00:07]} 2. Nc3 {[%emt 0:00:04]} g6 {[%emt 0:00:05]} 3. g3 {[%emt 0:00:04]} Bg7 {[%emt 0:00:05]} 4. Bg2 {[%emt 0:00:02]} O-O {[%emt 0:00:07]} 5. e4 {[%emt 0:00:12]} d6 {[%emt 0:01:41]} 6. Nge2 {[%emt 0:01:07]} e5 {[%emt 0:03:37]} 7. O-O {[%emt 0:00:05]} c6 {[%emt 0:02:51]} 8. d3 {[%emt 0:07:25]} a6 {[%emt 0:00:58]} 9. a4 {[%emt 0:03:21]} a5 {[%emt 0:01:12]} 10. h3 {[%emt 0:00:44]} Na6 {[%emt 0:05:03]} 11. Be3 {[%emt 0:04:44]} Nb4 {[%emt 0:07:52]} 12. d4 {[%emt 0:20:21]} Nd7 {[%emt 0:10:05]} 13. f4 {[%emt 0:07:08]} exd4 {[%emt 0:10:11]} 14. Bxd4 {[%emt 0:02:24]} Nc5 {[%emt 0:15:55]} 15. Bxg7 {[%emt 0:12:08]} Kxg7 {[%emt 0:00:05]} 16. f5 {[%emt 0:00:06]} f6 {[%emt 0:02:47]} 17. fxg6 hxg6 {[%emt 0:00:06]} 18. Nf4 {[%emt 0:06:10]} Qe7 {[%emt 0:03:49]} 19. Rf2 {[%emt 0:16:08]} Be6 {[%emt 0:03:52]} 20. b3 {[%emt 0:06:41]} Bf7 {[%emt 0:00:44]} 21. Rb1 {[%emt 0:07:23]} Qe5 {[%emt 0:02:46]} 22. Qf3 {[%emt 0:02:06]} g5 {[%emt 0:05:27]} 23. Nfe2 {[%emt 0:00:31]} Bg6 {[%emt 0:00:16]} 24. g4 {[%emt 0:02:47]} Rae8 {[%emt 0:03:40]} 25. Qg3 {[%emt 0:00:01]} d5 {[%emt 0:03:24]} 26. cxd5 {[%emt 0:01:02]} cxd5 {[%emt 0:00:10]} 27. Rd1 {[%emt 0:00:38]} dxe4 {[%emt 0:01:32]} 28. Qxe5 {[%emt 0:00:25]} Rxe5 {[%emt 0:00:06]} 29. Ng3 {[%emt 0:00:21]} e3 {[%emt 0:02:49]} 30. Re2 {[%emt 0:00:07]} Nbd3 {[%emt 0:06:54]} 31. Nf1 {[%emt 0:00:55]} Rfe8 {[%emt 0:01:29]} 32. Nd5 {[%emt 0:00:30]} Nxb3 {[%emt 0:01:01]} 33. Rxe3 {[%emt 0:00:22]} Nbc5 {[%emt 0:00:30]} 34. Rxe5 {[%emt 0:00:41]} fxe5 {[%emt 0:00:54]} 35. Nc3 {[%emt 0:00:25]} e4 {[%emt 0:01:35]} 36. Ne3 {[%emt 0:00:14]} Kf6 {[%emt 0:00:36]} 37. Rb1 {[%emt 0:00:36]} Ke5 {[%emt 0:00:44]} 38. Rb5 {[%emt 0:00:31]} Kd4 {[%emt 0:01:06]} 39. Ncd1 {[%emt 0:00:07]} Ra8 {[%emt 0:01:33]} 40. Nc2+ {[%emt 0:00:38]} Ke5 {[%emt 0:00:45]} 41. Nf2 Rc8 {[%emt 0:07:37]} 42. Bf1 {[%emt 0:17:12]} Nxf2 {[%emt 0:05:39]} 43. Kxf2 {[%emt 0:00:08]} Be8 {[%emt 0:04:24]} 44. Rxa5 {[%emt 0:01:49]} Bxa4 {[%emt 0:01:04]} 45. Ne3 {[%emt 0:01:10]} Kd6 {[%emt 0:03:52]} 46. Nc4+ Kc6 {[%emt 0:00:52]} 47. Ne5+ {[%emt 0:02:08]} Kd5 {[%emt 0:00:44]} 48. Nc4 {[%emt 0:02:48]} Rf8+ {[%emt 0:00:38]} 49. Kg2 {[%emt 0:00:07]} Kd4 {[%emt 0:02:18]} 50. Nd6 b6 {[%emt 0:00:43]} 51. Ra7 {[%emt 0:03:58]} Bd7 {[%emt 0:00:42]} 52. Ra1 {[%emt 0:02:30]} Nd3 {[%emt 0:03:13]} 53. Kg1 Kd5 {[%emt 0:03:05]} 54. Nxe4 {[%emt 0:03:05]} Rxf1+ {[%emt 0:00:08]} 55. Rxf1 {[%emt 0:00:39]} Kxe4 {[%emt 0:00:02]} 56. Rf7 {[%emt 0:00:14]} Ne5 {[%emt 0:00:55]} 57. Rf8 {[%emt 0:01:04]} b5 {[%emt 0:00:17]} 58. Kg2 {[%emt 0:00:51]} b4 {[%emt 0:02:25]} 59. Rb8 {[%emt 0:00:03]} Nd3 {[%emt 0:01:07]} 60. Kg3 {[%emt 0:00:03]} Be6 {[%emt 0:00:49]} 61. h4 {[%emt 0:01:08]} gxh4+ {[%emt 0:00:02]} 62. Kxh4 {[%emt 0:00:03]} b3 {[%emt 0:00:06]} 63. g5 {[%emt 0:00:43]} Nf4 {[%emt 0:01:34]} 64. Rb4+ {[%emt 0:01:57]} Kf5 {[%emt 0:00:35]} 65. Rb5+ {[%emt 0:00:02]} Kg6 {[%emt 0:00:24]} 66. Rb6 {[%emt 0:00:10]} Kf7 {[%emt 0:01:01]} 67. Rb7+ {[%emt 0:00:25]} Kf8 {[%emt 0:00:15]} 68. g6 {[%emt 0:01:58]} Nxg6+ {[%emt 0:00:47]} 69. Kg5 {[%emt 0:00:02]} Ne5 {[%emt 0:00:30]} 70. Kf6 {[%emt 0:01:13]} Nd7+ {[%emt 0:00:02]} 71. Kg5 {[%emt 0:00:00]} Ke7 {[%emt 0:00:03]} 72. Kf4 {[%emt 0:01:00]} Kd6 {[%emt 0:00:14]} 73. Ke3 {[%emt 0:00:21]} Nc5 {[%emt 0:00:30]} 74. Rb4 {[%emt 0:00:27]} Kc6 {[%emt 0:01:12]} 75. Kd4 {[%emt 0:00:19]} Na6 {[%emt 0:00:08]} 76. Ra4 {[%emt 0:00:43]} b2 {[%emt 0:01:23]} 77. Rxa6+ {[%emt 0:00:04]} Kc7 {[%emt 0:00:27]} 78. Rxe6 {[%emt 0:00:21]} b1=Q {[%emt 0:00:03]} 79. Ke5 {[%emt 0:00:35]} Qb5+ {[%emt 0:00:13]} 80. Kf6 {[%emt 0:00:10]} Kd7 {[%emt 0:00:15]} 81. Re7+ {[%emt 0:00:05]} Kd8 {[%emt 0:00:12]} 82. Re5 {[%emt 0:00:44]} Qb6+ {[%emt 0:00:28]} 83. Kf5 {[%emt 0:00:17]} Kd7 {[%emt 0:00:12]} 84. Rd5+ {[%emt 0:00:41]} Ke7 {[%emt 0:00:06]} 85. Re5+ {[%emt 0:00:02]} Kf7 {[%emt 0:00:07]} 86. Ke4 {[%emt 0:00:16]} Kg6 {[%emt 0:01:18]} 87. Rd5 {[%emt 0:01:19]} Qc7 {[%emt 0:01:40]} 88. Rd4 {[%emt 0:00:59]} Kf6 {[%emt 0:00:12]} 89. Rd5 {[%emt 0:01:11]} Ke6 {[%emt 0:00:28]} 90. Rd4 {[%emt 0:00:28]} Qc3 {[%emt 0:00:25]} 91. Rd3 {[%emt 0:00:21]} Qe5+ {[%emt 0:00:24]} 92. Kf3 {[%emt 0:00:01]} Kf5 {[%emt 0:00:09]} 93. Re3 {[%emt 0:00:18]} Qd4 {[%emt 0:00:30]} 94. Ke2 {[%emt 0:01:16]} Kf4 {[%emt 0:00:23]} 95. Rf3+ {[%emt 0:00:35]} Ke4 {[%emt 0:00:05]} 96. Rf8 {[%emt 0:00:31]} Qc4+ {[%emt 0:01:34]} 97. Kd1 {[%emt 0:00:18]} Qa4+ {[%emt 0:00:39]} 98. Ke2 {[%emt 0:00:03]} Qb5+ {[%emt 0:00:43]} 99. Kd1 {[%emt 0:00:43]} Ke3 {[%emt 0:00:42]} 100. Rc8 {[%emt 0:00:59]} Qb1+ {[%emt 0:00:12]} 0-1

[Event "1.FrauenBL 2018-19"]
[Site "Berlin"]
[Date "2019.03.03"]
[Round "11.4"]
[White "Movsesian, Julia"]
[Black "Brandt, Carina"]
[Result "1-0"]
[ECO "E62"]
[WhiteElo "2302"]
[BlackElo "2076"]
[Annotator "NA"]
[PlyCount "71"]
[EventDate "2018.10.27"]
[EventType "team-tourn"]
[EventCountry "GER"]
[SourceTitle "playchess.com"]
[Source "ChessBase"]
[SourceQuality "1"]
[WhiteTeam "Rodewischer SM"]
[BlackTeam "TuRa Harksheide"]
[TimeControl "40/5400+30:1800+30"]

1. Nf3 {[%emt 0:00:04]} Nf6 {[%emt 0:00:14]} 2. g3 {[%emt 0:00:08]} g6 {[%emt 0:00:00]} 3. Bg2 {[%emt 0:00:03]} Bg7 {[%emt 0:00:00]} 4. O-O {[%emt 0:00:09]} O-O {[%emt 0:00:18]} 5. d4 {[%emt 0:00:01]} d6 {[%emt 0:00:00]} 6. c4 {[%emt 0:00:09]} Nc6 {[%emt 0:03:19]} 7. Nc3 {[%emt 0:00:35]} e5 {[%emt 0:03:35]} 8. d5 {[%emt 0:00:26]} Nb8 {[%emt 0:00:00]} 9. e4 {[%emt 0:01:47]} a5 {[%emt 0:00:52]} 10. h3 {[%emt 0:04:56]} Na6 {[%emt 0:01:11]} 11. Be3 {[%emt 0:01:11]} Nd7 {[%emt 0:00:22]} 12. a3 {[%emt 0:06:34]} f5 {[%emt 0:03:01]} 13. exf5 {[%emt 0:07:29]} gxf5 {[%emt 0:10:10]} 14. Bg5 {[%emt 0:00:00]} Qe8 {[%emt 0:00:00]} 15. b4 {[%emt 0:26:00]} Qg6 {[%emt 0:26:00]} 16. Ne2 {[%emt 0:01:07]} Kh8 {[%emt 0:01:07]} 17. Qc1 {[%emt 0:05:39]} Rg8 {[%emt 0:12:17]} 18. Nh4 {[%emt 0:05:26]} Qf7 {[%emt 0:00:10]} 19. Kh2 {[%emt 0:04:57]} e4 {[%emt 0:05:17]} 20. Rb1 {[%emt 0:02:32]} Ne5 {[%emt 0:01:09]} 21. f3 {[%emt 0:01:05]} exf3 {[%emt 0:08:15]} 22. Nxf3 {[%emt 0:00:20]} axb4 {[%emt 0:02:12]} 23. axb4 {[%emt 0:01:02]} Bd7 {[%emt 0:03:32]} 24. Nfd4 {[%emt 0:04:38]} Qh5 {[%emt 0:04:00]} 25. Bh4 {[%emt 0:10:43]} Nd3 {[%emt 0:07:04]} 26. Qd2 {[%emt 0:00:00]} Be5 {[%emt 0:00:00]} 27. Kh1 {[%emt 0:00:00]} Naxb4 {[%emt 0:01:37]} 28. Rxb4 {[%emt 0:00:00]} Nxb4 {[%emt 0:00:05]} 29. Qxb4 {[%emt 0:00:00]} Ra2 {[%emt 0:02:30]} 30. Qe1 {[%emt 0:11:16]} Qh6 {[%emt 0:01:39]} 31. Nf3 {[%emt 0:00:00]} f4 {[%emt 0:02:44]} 32. Nxe5 {[%emt 0:04:23]} dxe5 {[%emt 0:00:01]} 33. Nc3 {[%emt 0:00:00]} Rxg2 {[%emt 0:01:23]} 34. Qxe5+ {[%emt 0:00:00]} Rg7 {[%emt 0:00:06]} 35. Kxg2 {[%emt 0:00:00]} Kg8 {[%emt 0:02:58]} 36. Qxf4 {[%emt 0:00:00]} 1-0

[Event "1.FrauenBL 2018-19"]
[Site "Berlin"]
[Date "2019.03.03"]
[Round "11.4"]
[White "Straub, Natalia"]
[Black "Kiefhaber, Veronika"]
[Result "0-1"]
[ECO "E63"]
[WhiteElo "2146"]
[BlackElo "2151"]
[Annotator "NA"]
[PlyCount "106"]
[EventDate "2018.10.27"]
[EventType "team-tourn"]
[EventCountry "GER"]
[SourceTitle "playchess.com"]
[Source "ChessBase"]
[SourceQuality "1"]
[WhiteTeam "SF Deizisau"]
[BlackTeam "Karlsruher SF"]
[TimeControl "40/5400+30:1800+30"]

1. d4 {[%emt 0:00:04]} Nf6 {[%emt 0:00:07]} 2. c4 {[%emt 0:00:08]} g6 {[%emt 0:00:10]} 3. g3 {[%emt 0:00:09]} Bg7 4. Bg2 {[%emt 0:00:02]} O-O {[%emt 0:00:28]} 5. Nc3 {[%emt 0:00:08]} d6 {[%emt 0:00:18]} 6. Nf3 {[%emt 0:00:05]} a6 {[%emt 0:00:22]} 7. O-O {[%emt 0:02:06]} Nc6 {[%emt 0:00:30]} 8. Re1 {[%emt 0:00:29]} Rb8 {[%emt 0:01:24]} 9. Rb1 {[%emt 0:00:44]} e5 {[%emt 0:02:15]} 10. d5 {[%emt 0:13:59]} Ne7 {[%emt 0:01:40]} 11. e4 {[%emt 0:03:36]} c6 {[%emt 0:01:58]} 12. h3 {[%emt 0:09:39]} cxd5 {[%emt 0:03:20]} 13. cxd5 {[%emt 0:00:16]} b5 {[%emt 0:00:36]} 14. b4 {[%emt 0:03:06]} Ne8 {[%emt 0:05:34]} 15. Nd2 {[%emt 0:18:40]} f5 {[%emt 0:02:45]} 16. Nb3 {[%emt 0:04:32]} Bd7 {[%emt 0:05:00]} 17. Na5 {[%emt 0:09:39]} Rc8 {[%emt 0:07:10]} 18. Qb3 {[%emt 0:02:53]} Kh8 {[%emt 0:02:33]} 19. Bg5 {[%emt 0:03:24]} Bf6 {[%emt 0:04:09]} 20. Bd2 {[%emt 0:01:23]} f4 {[%emt 0:05:51]} 21. Rec1 {[%emt 0:12:07]} Qb6 {[%emt 0:15:48]} 22. Nd1 {[%emt 0:01:57]} Rxc1 {[%emt 0:05:45]} 23. Rxc1 {[%emt 0:00:03]} g5 {[%emt 0:00:21]} 24. Kh2 {[%emt 0:02:28]} Ng6 {[%emt 0:02:41]} 25. Nc6 {[%emt 0:00:53]} g4 {[%emt 0:08:34]} 26. a4 {[%emt 0:03:25]} bxa4 {[%emt 0:02:09]} 27. Qxa4 {[%emt 0:00:42]} gxh3 {[%emt 0:01:56]} 28. Bxh3 {[%emt 0:02:41]} Bxh3 {[%emt 0:04:15]} 29. Kxh3 {[%emt 0:00:02]} fxg3 {[%emt 0:00:26]} 30. fxg3 {[%emt 0:01:40]} Qg1 {[%emt 0:06:05]} 31. Nc3 {[%emt 0:03:03]} Qf2 {[%emt 0:00:23]} 32. Qc2 {[%emt 0:00:41]} Bh4 {[%emt 0:08:56]} 33. Be1 {[%emt 0:00:12]} Qf3 {[%emt 0:00:16]} 34. Kh2 {[%emt 0:01:27]} Bg5 {[%emt 0:00:11]} 35. Ra1 {[%emt 0:00:36]} Qh5+ {[%emt 0:02:11]} 36. Kg2 {[%emt 0:00:05]} Rf3 {[%emt 0:00:38]} 37. Ne2 {[%emt 0:01:02]} Qg4 {[%emt 0:00:47]} 38. Ng1 {[%emt 0:00:36]} Nf4+ {[%emt 0:00:20]} 39. Kh1 {[%emt 0:00:03]} Rf1 {[%emt 0:00:45]} 40. Bc3 {[%emt 0:00:56]} Rxa1 {[%emt 0:01:04]} 41. Bxa1 {[%emt 0:30:04]} Qxg3 {[%emt 0:01:38]} 42. Nxe5 {[%emt 0:00:00]} dxe5 {[%emt 0:04:10]} 43. Bxe5+ {[%emt 0:00:00]} Kg8 {[%emt 0:01:15]} 44. d6 {[%emt 0:00:00]} Qg4 {[%emt 0:05:09]} 45. Bxf4 {[%emt 0:00:00]} Bxf4 {[%emt 0:00:40]} 46. Qc4+ {[%emt 0:00:00]} Kg7 {[%emt 0:08:33]} 47. Qd4+ {[%emt 0:02:15]} Nf6 {[%emt 0:00:18]} 48. e5 {[%emt 0:00:08]} Qh4+ {[%emt 0:01:22]} 49. Kg2 {[%emt 0:00:08]} Qg3+ {[%emt 0:00:05]} 50. Kf1 {[%emt 0:00:04]} Bxe5 {[%emt 0:00:08]} 51. Qa7+ {[%emt 0:01:15]} Kg6 {[%emt 0:00:10]} 52. d7 {[%emt 0:00:52]} Qd3+ {[%emt 0:00:27]} 53. Kg2 {[%emt 0:00:09]} Nxd7 {[%emt 0:00:44]} 0-1

[Event "1.FrauenBL 2018-19"]
[Site "Berlin"]
[Date "2019.03.03"]
[Round "11.4"]
[White "Goehler, Antje"]
[Black "Belenkaya, Dina"]
[Result "0-1"]
[ECO "D27"]
[WhiteElo "2099"]
[BlackElo "2360"]
[Annotator "NA"]
[PlyCount "127"]
[EventDate "2018.10.27"]
[EventType "team-tourn"]
[EventCountry "GER"]
[SourceTitle "playchess.com"]
[Source "ChessBase"]
[SourceQuality "1"]
[WhiteTeam "Pankow"]
[BlackTeam "Bad Koenigshofen"]
[TimeControl "40/5400+30:1800+30"]

1. d4 {[%emt 0:00:05]} d5 {[%emt 0:00:06]} 2. Nf3 {[%emt 0:00:13]} Nf6 {[%emt 0:00:05]} 3. c4 {[%emt 0:00:21]} dxc4 {[%emt 0:00:09]} 4. e3 {[%emt 0:01:39]} e6 {[%emt 0:00:14]} 5. Bxc4 {[%emt 0:00:18]} a6 {[%emt 0:00:05]} 6. O-O {[%emt 0:02:15]} c5 {[%emt 0:00:09]} 7. dxc5 {[%emt 0:03:10]} Bxc5 {[%emt 0:01:01]} 8. Qxd8+ {[%emt 0:02:05]} Kxd8 {[%emt 0:00:04]} 9. Rd1+ {[%emt 0:00:11]} Ke7 {[%emt 0:00:10]} 10. b3 {[%emt 0:03:57]} Bd7 {[%emt 0:01:26]} 11. Bb2 {[%emt 0:03:00]} Rc8 {[%emt 0:02:08]} 12. Nbd2 {[%emt 0:02:31]} Bb5 {[%emt 0:15:58]} 13. Rac1 {[%emt 0:08:34]} Nbd7 {[%emt 0:01:43]} 14. a4 {[%emt 0:05:57]} Bxc4 {[%emt 0:01:44]} 15. Nxc4 {[%emt 0:02:36]} Bb4 {[%emt 0:04:52]} 16. Nfe5 {[%emt 0:09:36]} Nxe5 {[%emt 0:09:00]} 17. Nxe5 {[%emt 0:02:58]} g5 {[%emt 0:03:39]} 18. Kf1 {[%emt 0:04:46]} h5 {[%emt 0:01:32]} 19. Rc4 {[%emt 0:01:20]} Rxc4 {[%emt 0:01:32]} 20. Nxc4 {[%emt 0:00:08]} Rc8 {[%emt 0:01:57]} 21. Bxf6+ {[%emt 0:10:20]} Kxf6 {[%emt 0:00:07]} 22. Nd6 {[%emt 0:00:05]} Rc6 {[%emt 0:05:10]} 23. Ne4+ {[%emt 0:06:08]} Kg6 {[%emt 0:06:12]} 24. Rd4 {[%emt 0:11:23]} Rb6 {[%emt 0:04:02]} 25. f4 {[%emt 0:04:28]} gxf4 {[%emt 0:00:56]} 26. exf4 {[%emt 0:00:06]} f5 {[%emt 0:01:10]} 27. Nf2 {[%emt 0:03:08]} Bc3 {[%emt 0:02:31]} 28. Rd3 {[%emt 0:01:31]} Rxb3 {[%emt 0:07:01]} 29. Nd1 {[%emt 0:00:06]} Rb1 {[%emt 0:00:56]} 30. Rxc3 {[%emt 0:00:44]} Rxd1+ {[%emt 0:00:04]} 31. Ke2 {[%emt 0:00:13]} Rb1 {[%emt 0:01:01]} 32. Rc7 {[%emt 0:02:33]} a5 {[%emt 0:06:02]} 33. Re7 {[%emt 0:04:25]} Kf6 {[%emt 0:00:27]} 34. Rh7 {[%emt 0:01:06]} Rb4 {[%emt 0:02:22]} 35. Rh6+ {[%emt 0:00:43]} Kf7 {[%emt 0:01:48]} 36. Rxh5 {[%emt 0:01:11]} Kg6 {[%emt 0:02:58]} 37. Rg5+ {[%emt 0:01:19]} Kf6 {[%emt 0:00:02]} 38. g3 {[%emt 0:00:54]} Rxa4 {[%emt 0:03:47]} 39. h4 {[%emt 0:00:24]} Ra2+ {[%emt 0:10:36]} 40. Kd3 {[%emt 0:01:00]} b5 {[%emt 0:03:19]} 41. Kc3 {[%emt 0:32:02]} b4+ {[%emt 0:06:01]} 42. Kb3 {[%emt 0:00:00]} Ra3+ {[%emt 0:01:18]} 43. Kb2 {[%emt 0:00:00]} Rd3 {[%emt 0:05:20]} 44. h5 {[%emt 0:00:00]} a4 {[%emt 0:02:38]} 45. h6 {[%emt 0:00:00]} Rd2+ {[%emt 0:01:41]} 46. Kc1 {[%emt 0:00:00]} Rh2 {[%emt 0:00:22]} 47. Rg8 {[%emt 0:00:00]} Rxh6 {[%emt 0:00:38]} 48. Rf8+ {[%emt 0:00:00]} Ke7 {[%emt 0:00:14]} 49. Rb8 {[%emt 0:00:00]} Rh1+ {[%emt 0:00:18]} 50. Kb2 {[%emt 0:00:00]} Rh2+ {[%emt 0:00:14]} 51. Kb1 {[%emt 0:00:00]} b3 {[%emt 0:00:36]} 52. Rb4 {[%emt 0:00:00]} Ra2 {[%emt 0:00:21]} 53. Rb6 {[%emt 0:00:00]} Kd7 {[%emt 0:00:27]} 54. Kc1 {[%emt 0:00:00]} Kc7 {[%emt 0:01:49]} 55. Ra6 {[%emt 0:00:00]} a3 {[%emt 0:01:08]} 56. Kb1 {[%emt 0:00:00]} Kb7 {[%emt 0:00:16]} 57. Ra4 {[%emt 0:00:00]} Kc6 {[%emt 0:00:15]} 58. Ra8 {[%emt 0:04:10]} Kc5 {[%emt 0:01:03]} 59. Ra4 {[%emt 0:01:40]} Kb5 {[%emt 0:00:22]} 60. Ra8 {[%emt 0:00:37]} Kc4 {[%emt 0:00:54]} 61. Ra6 {[%emt 0:01:11]} Rb2+ {[%emt 0:00:52]} 62. Ka1 {[%emt 0:01:22]} Rg2 {[%emt 0:00:51]} 63. g4 Rxg4 {Nb1 [%clk ] Kxd3 [%clk ]} 64. Ra4+ {--- [%clk ] Rd7 [%clk ]} 0-1